Cogmind - Beta 16 @@@ ROGUE MODE // 2026.01.14 @ 17:50:16 Player: parasect Result: Smashed by cave-in Performance ------------- Evolutions (1) 500 Regions Visited (5) 1000 Robots Destroyed (0) 0 Value Destroyed (10) 10 Prototype IDs (23) 460 Alien Tech Used (0) 0 Bonus (500) 500 TOTAL SCORE: 2470 Bonus ------- Pacifist 200 Aligned with FarCom 300 Cogmind --------- Core Integrity 0/400 Matter 268/300 Energy 100/100 System Corruption 10% Temperature Cool (0) Movement Core (50) Location -9/Exiles Parts ------- > --- POWER (1) -------- (None) > --- PROPULSION (3) --- Light Treads > --- UTILITY (3) ------ (None) > --- WEAPON (2) ------- Maul > --- INVENTORY (5) ---- Light Ion Engine Sensor Array Medium Laser Mining Laser Peak State ------------ > --- POWER ------------ (None) > --- PROPULSION ------- Light Treads Aluminum Leg Aluminum Leg > --- UTILITY ---------- Signal Interpreter > --- WEAPON ----------- Assault Rifle Maul > --- INVENTORY -------- Light Ion Engine Light Treads Sensor Array Medium Laser [Rating: 7] Favorites ----------- Power Light Ion Engine Engine Light Ion Engine Propulsion Aluminum Leg Treads Light Treads Leg Aluminum Leg Utility Signal Interpreter Storage Small Storage Unit Processor Signal Interpreter Weapon Assault Rifle Energy Gun Medium Laser Ballistic Gun Assault Rifle Special Weapon Mining Laser Impact Weapon Maul Build | -11 -10 -10 -9 -9 -9 ------- Run | Yrd Mat Min Mat Min Exi Slots Evolved 2 | . . . 2 . . Power . | . . . . . . Propulsion 1 | . . . 1 . . Utility 1 | . . . 1 . . Weapon . | . . . . . . Parts Attached 5 | . . . 2 2 1 Power . | . . . . . . Engine . | . . . . . . Core . | . . . . . . Reactor . | . . . . . . Propulsion 2 | . . . . 1 1 Treads 2 | . . . . 1 1 Leg . | . . . . . . Wheel . | . . . . . . Hover . | . . . . . . Flight . | . . . . . . Utility 1 | . . . 1 . . Device . | . . . . . . Storage . | . . . . . . Processor 1 | . . . 1 . . Hackware . | . . . . . . Protection . | . . . . . . Artifact . | . . . . . . Weapon 2 | . . . 1 1 . Energy Gun . | . . . . . . Energy Cannon . | . . . . . . Ballistic Gun . | . . . . . . Ballistic Cannon . | . . . . . . Launcher . | . . . . . . Special Weapon 1 | . . . . 1 . Impact Weapon 1 | . . . 1 . . Slashing Weapon . | . . . . . . Piercing Weapon . | . . . . . . Special Melee Weapon . | . . . . . . Unidentified Prototypes . | . . . . . . Parts Lost 4 | . . . . 1 3 Power . | . . . . . . Propulsion 3 | . . . . 1 2 Utility 1 | . . . . . 1 Weapon . | . . . . . . Highest Loss Streak 2 | . . . . 1 2 To Critical Strikes . | . . . . . . Average Backups 4 | 5 5 5 4 4 4 Power . | . 1 1 1 1 1 Propulsion 1 | 4 2 2 2 1 . Utility . | . . . . 1 1 Weapon 1 | 1 1 2 1 1 1 Tool/Special . | . . . . . . Unused Backups 3 | . 1 . . . 2 Power 1 | . . . . . 1 Propulsion . | . . . . . . Utility 2 | . 1 . . . 1 Weapon . | . . . . . . Tool/Special . | . . . . . . Average Slot Usage (%) 44 | . 42 42 48 48 41 Treads 9 | . . . . 11 14 Leg 12 | . 28 28 22 13 5 Processor 6 | . . . 6 11 4 Ballistic Gun 7 | . 14 14 11 11 2 Special Weapon 2 | . . . . . 5 Impact Weapon 4 | . . . 8 . 7 Peak Build Rating 7 | 6 3 3 6 7 6 Average Rating 4 | 5 3 3 5 4 4 On Entrance 4 | 6 3 3 3 6 5 Avg Prop Armor Cover (%) 25 | . 25 25 23 26 24 Naked Turns . | . . . . . . Heaviest Build 5 | 2 2 2 5 3 4 Greatest Support 20 | 3 3 3 3 20 3 Greatest Overweight (x) 1 | . . . 1 . 1 Average Overweight (x) . | . . . . . . Largest Inventory Capacity 8 | 8 5 5 5 5 5 Average Capacity 5 | 6 5 5 5 5 5 Most Carried 5 | 5 5 5 5 5 5 Average Carried 4 | 4 4 5 4 4 4 Final Capacity 5 | 5 5 5 5 5 5 Final Carried 5 | 5 5 5 5 5 4 Class Distribution -------------------- 100% | Mutant Dominant Class ---------------- Mutant | -10/Materials Mutant | -10/Mines Mutant | -9/Materials Mutant | -9/Mines Mutant | -9/Exiles Resources | -11 -10 -10 -9 -9 -9 ----------- Run | Yrd Mat Min Mat Min Exi Matter Collected 220 | 178 . . . 42 . Remotely . | . . . . . . Salvage Created 7 | . . . . . 7 Parts . | . . . . . . Haulers Intercepted . | . . . . . . Recyclers Shooed 1 | . . . . 1 . Parts Field Recycled . | . . . . . . Retrieved Matter . | . . . . . . Parts Self-Destructed . | . . . . . . Prevented . | . . . . . . Parts Restored . | . . . . . . Kills | -11 -10 -10 -9 -9 -9 ------- Run | Yrd Mat Min Mat Min Exi Combat Hostiles Destroyed 1 | . . . . . 1 Classes Destroyed 1 | . . . . . 1 Assembled 1 | . . . . . 1 Best Kill Streak 1 | . . . . . 1 Combat Bots Only 1 | . . . . . 1 Max Kills in Single Turn 1 | . . . . . 1 Gunslinging . | . . . . . . Exploded . | . . . . . . Melee . | . . . . . . Uniques/NPCs Destroyed . | . . . . . . Combat | -11 -10 -10 -9 -9 -9 -------- Run | Yrd Mat Min Mat Min Exi Hostile Shots Fired 70 | . 8 . 21 26 15 Missed 19 | . 4 . 7 6 2 Hits 51 | . 4 . 14 20 13 Projectile 51 | . 4 . 14 20 13 AOE 2 | . . . . 2 . Critical Strikes 1 | . . . . . 1 Damage Taken 1112 | . 43 10 190 292 577 Core 411 | . . 1 77 119 214 Absorbed by Shields . | . . . . . . Core Remaining (%) 99 | 100 . 99 . . . Volleys Fired 4 | . 1 . 1 . 2 Largest 1 | . 1 . 1 . 1 Hottest 100 | . 20 . 20 . 100 Shots Fired 4 | . 1 . 1 . 2 Gun 2 | . 1 . 1 . . Cannon . | . . . . . . Launcher . | . . . . . . Special 2 | . . . . . 2 Kinetic 2 | . 1 . 1 . . Thermal 2 | . . . . . 2 Explosive . | . . . . . . Electromagnetic . | . . . . . . Robot Hit Streak . | . . . . . . Robot Miss Streak 1 | . 1 . . . . Penetration Max . | . . . . . . Secondary Targets . | . . . . . . Shots Hit Robots 2 | . . . . . 2 Core Hits . | . . . . . . Critical Kills . | . . . . . . Critical Parts Destroyed . | . . . . . . Critical Strikes . | . . . . . . Melee Attacks 51 | . . . 1 . 50 Impact 51 | . . . 1 . 50 Slashing . | . . . . . . Piercing . | . . . . . . Sneak Attacks . | . . . . . . Combat Hostiles . | . . . . . . Follow-up Attacks . | . . . . . . Damage Inflicted 111 | . . 22 . 2 87 Guns . | . . . . . . Cannons . | . . . . . . Explosions . | . . . . . . Melee 87 | . . . . . 87 Ramming 24 | . . 22 . 2 . Kinetic . | . . . . . . Thermal . | . . . . . . Explosive . | . . . . . . Electromagnetic . | . . . . . . Impact 87 | . . . . . 87 Slashing . | . . . . . . Piercing . | . . . . . . Highest Corruption 10 | . . . . . 10 Average Corruption 6 | . . . . . 6 Corruption Purged . | . . . . . . Corruption Blocked . | . . . . . . Effects 3 | . . . . . 3 Message Errors 1 | . . . . . 1 Matter Fused 1 | . . . . . 1 Data Loss (minor) 1 | . . . . . 1 Overload Shots . | . . . . . . Overflow Damage 20 | . . . . . 20 Projectiles . | . . . . . . Explosions . | . . . . . . Melee 20 | . . . . . 20 Knockbacks . | . . . . . . Impact . | . . . . . . Kinetic . | . . . . . . Secondary . | . . . . . . Self-Inflicted Damage 10 | . . 10 . . . Shots . | . . . . . . Rammed 7 | . . 4 . 3 . Targets Rammed 7 | . . 4 . 3 . Kicked . | . . . . . . Crushed . | . . . . . . Highest Temperature 33 | . . . . . 33 Average Temperature 18 | . . . . . 18 Received Heat Transfer 470 | . 24 . 78 108 260 Siege Activations . | . . . . . . Martial Activations . | . . . . . . Shielding Activations . | . . . . . . Robots Disrupted . | . . . . . . Combat Hostiles . | . . . . . . Robots Corrupted 1 | . . . . . 1 Combat Hostiles 1 | . . . . . 1 Parts Fried . | . . . . . . Impact Corruptions 2 | . . . . . 2 Robots Melted . | . . . . . . Combat Hostiles . | . . . . . . Parts Melted . | . . . . . . Heat Transferred . | . . . . . . Parts Sabotaged . | . . . . . . Parts Stolen . | . . . . . . Parts Stripped . | . . . . . . Power Chain Reactions . | . . . . . . Alert | -11 -10 -10 -9 -9 -9 ------- Run | Yrd Mat Min Mat Min Exi Maximum Alert Level . | . . . . . . Low Security (%) 100 | 100 100 100 100 100 . Level 1 . | . . . . . . Level 2 . | . . . . . . Level 3 . | . . . . . . Level 4 . | . . . . . . Level 5 . | . . . . . . High Security . | . . . . . . Max Security . | . . . . . . Peak Influence 65 | . 6 1 22 65 . Initial 1 | . . 1 . . . Average 12 | . 2 1 7 17 . Influence Increases 141 | . 14 . 22 105 . Successful Hack 21 | . 14 . 7 . . Disable Machine 15 | . . . 15 . . Partial Spotted 15 | . . . . 15 . Lose Combat Pursuer 90 | . . . . 90 . Influence Decreases 141 | . 10 3 23 50 55 Entered New Map 59 | . . 3 1 . 55 Time Decay 82 | . 10 . 22 50 . Squads Dispatched 2 | . 1 . 1 . . Investigation 1 | . 1 . . . . Extermination . | . . . . . . Reinforcement 1 | . . . 1 . . Assault . | . . . . . . Garrison . | . . . . . . Intercept . | . . . . . . Searches Triggered . | . . . . . . Construction Impeded . | . . . . . . Haulers Reinforced . | . . . . . . Active Scanning Responses . | . . . . . . Cargo Convoy Interrupts . | . . . . . . Stealth | -11 -10 -10 -9 -9 -9 --------- Run | Yrd Mat Min Mat Min Exi Distress Signals 1 | . . . 1 . . Communications Jammed . | . . . . . . Distress Signals . | . . . . . . Times Spotted 38 | . 6 . 4 21 7 Peak Tracking Total 20 | . 6 . 5 20 9 Tactical Retreats 3 | . . . . 3 . Traps | -11 -10 -10 -9 -9 -9 ------- Run | Yrd Mat Min Mat Min Exi Traps Triggered . | . . . . . . Indirectly . | . . . . . . Trap Hack Attempts . | . . . . . . Triggered . | . . . . . . Disarmed . | . . . . . . Reprogrammed . | . . . . . . Reused . | . . . . . . Traps Extracted . | . . . . . . Installed . | . . . . . . Triggered . | . . . . . . Machines | -11 -10 -10 -9 -9 -9 ---------- Run | Yrd Mat Min Mat Min Exi Machines Disabled 3 | . . . 1 . 2 Max in Single Turn 1 | . . . 1 . 1 Machines Repaired . | . . . . . . Machines Dismantled . | . . . . . . Machines Sabotaged . | . . . . . . Overloaded Fab Kills . | . . . . . . Hacking | -11 -10 -10 -9 -9 -9 --------- Run | Yrd Mat Min Mat Min Exi Machines Accessed 5 | . 3 . 1 . 1 Terminals 4 | . 3 . 1 . . Fabricators . | . . . . . . Repair Stations . | . . . . . . Recycling Units . | . . . . . . Scanalyzers . | . . . . . . Garrison Access . | . . . . . . Total Hacks 14 | . 9 . 4 . 1 Successful 7 | . 5 . 1 . 1 Failed 6 | . 3 . 3 . . Catastrophic 1 | . . . 1 . . Database Lockouts 1 | . 1 . . . . Manual 10 | . 9 . . . 1 Terminals 13 | . 9 . 4 . . Fabricators . | . . . . . . Repair Stations . | . . . . . . Recycling Units . | . . . . . . Scanalyzers . | . . . . . . Garrison Access . | . . . . . . Terminal Hacks 5 | . 3 . 1 . 1 Robot Analysis 1 | . 1 . . . . Branch Access Points 2 | . 1 . 1 . . Zone Layout 1 | . 1 . . . . Proto ID Catalog 1 | . . . . . 1 Fabricator Hacks . | . . . . . . Repair Station Hacks . | . . . . . . Recycling Unit Hacks . | . . . . . . Scanalyzer . | . . . . . . Garrison Access Hacks . | . . . . . . Unauthorized Hacks 2 | . 2 . . . . Terminals 2 | . 2 . . . . Botnet 1 | . 1 . . . . Search 1 | . 1 . . . . Fabricators . | . . . . . . Repair Stations . | . . . . . . Recycling Units . | . . . . . . Scanalyzers . | . . . . . . Garrison Access . | . . . . . . Data Cores Recovered . | . . . . . . Used . | . . . . . . Hacking Detections 3 | . 2 . 1 . . Full Trace Events 1 | . 1 . . . . Feedback Events . | . . . . . . Feedback Blocked . | . . . . . . Robot Schematics Acquired . | . . . . . . Robots Built . | . . . . . . Authchips . | . . . . . . Time . | . . . . . . Total Robot Build Rating . | . . . . . . Part Schematics Acquired . | . . . . . . Parts Built . | . . . . . . Authchips . | . . . . . . Time . | . . . . . . Total Part Build Rating . | . . . . . . Part Studies Acquired . | . . . . . . Parts Repaired . | . . . . . . Time . | . . . . . . Parts Recycled . | . . . . . . Recycled Matter . | . . . . . . Retrieved Matter . | . . . . . . Retrieved Components . | . . . . . . Parts Scanalyzed . | . . . . . . Part Schematics Acquired . | . . . . . . Parts Damaged . | . . . . . . Bothacking | -11 -10 -10 -9 -9 -9 ------------ Run | Yrd Mat Min Mat Min Exi Used RIF Installer . | . . . . . . Robots Hacked . | . . . . . . Non-combat . | . . . . . . Combat . | . . . . . . Robot Hacks Applied . | . . . . . . Relay Couplers Released . | . . . . . . Fabnet Peak Effective % . | . . . . . . Robots Rewired . | . . . . . . Allies Hacked . | . . . . . . Hacks Repelled . | . . . . . . Allies | -11 -10 -10 -9 -9 -9 -------- Run | Yrd Mat Min Mat Min Exi Total Allies 1 | . . . . 1 . Largest Group 1 | . . . . 1 . Highest-Rated Group 31 | . . . . 31 . Highest-Rated Ally 31 | . . . . 31 . Total Orders . | . . . . . . Ally Attacks . | . . . . . . Total Damage . | . . . . . . Kills . | . . . . . . Allies Corrupted . | . . . . . . Allies Melted . | . . . . . . Intel | -11 -10 -10 -9 -9 -9 ------- Run | Yrd Mat Min Mat Min Exi Active Infowar (turns) . | . . . . . . Robot Analysis Total 1 | . 1 . . . . Derelict Logs Recovered 3 | . . 1 . 2 . Drone Launches . | . . . . . . Drone Recoveries . | . . . . . . Exploration | -11 -10 -10 -9 -9 -9 ------------- Run | Yrd Mat Min Mat Min Exi Turns Passed 568 | 4 37 14 73 186 254 Spaces Moved 607 | 1 66 21 72 288 159 Core 574 | 1 66 21 72 255 159 Treads 33 | . . . . 33 . Legs . | . . . . . . Wheels . | . . . . . . Hover . | . . . . . . Flight . | . . . . . . Fastest Speed 50 | 50 50 50 50 50 50 Average Speed 62 | 50 50 50 90 62 54 Slowest Speed 160 | 50 50 50 100 160 100 Overloaded Moves . | . . . . . . Propulsion Burnouts . | . . . . . . Robots Hopped . | . . . . . . Potential Cave-ins 36 | . . . . . 36 Cave-ins Triggered 5 | . . . . . 5 Time Travels 1 | . . . . . 1 Exploration Rate (%) 25 | 2 18 10 14 68 40 Regions Visited 5 Branch Regions 3 Pre-discovered Areas . | . . . . . . Known Exits Taken 3 | . 1 . 1 1 . Unknown Exits Taken 2 | 1 . 1 . . . Scrap Searched . | . . . . . . Spaces Dug 42 | . . . . . 42 Terrain Destroyed 42 | . . . . . 42 Melee 42 | . . . . . 42 Projectile . | . . . . . . AOE . | . . . . . . Terrain Rammed . | . . . . . . Walls Destroyed . | . . . . . . Machines Disabled . | . . . . . . Actions | -11 -10 -10 -9 -9 -9 --------- Run | Yrd Mat Min Mat Min Exi Total 689 | 6 68 24 76 293 222 Wait 7 | . . . . . 7 Move 600 | . 65 21 71 287 156 Hop . | . . . . . . Pick Up 2 | . 1 . 1 . . Fast Attach 2 | . . . 1 1 . Attach 4 | . . . 1 1 2 Detach 4 | 2 . . . 1 1 Swap . | . . . . . . Drop 6 | 4 1 . . . 1 Fire 4 | . 1 . 1 . 2 Melee 51 | . . . 1 . 50 Ram 6 | . . 3 . 3 . Kick . | . . . . . . Crush . | . . . . . . Escape Stasis 3 | . . . . . 3 Rewire . | . . . . . . Trap . | . . . . . . Miscellaneous . | . . . . . . Route ------- -11/Scrapyard -10/Materials (discovered 2 exits: *Min x2) -10/Mines -9/Materials (discovered 2 exits: Mat / *Min) -9/Mines (discovered 2 exits: *Mat / *Exi) -9/Exiles (discovered 1 exit: [*Min]) History --------- Turn | Location | Event 5 | -11/Scrapyard | Discovered new exit (range 0) 5 | -11/Scrapyard | Entered Materials 24 | -10/Materials | Central database locked down 24 | -10/Materials | Identified exit to Mines 42 | -10/Materials | Entered Mines 47 | -10/Mines | Learned location of 1 exit from Materials 53 | -10/Mines | Discovered new exit (range 5) 56 | -10/Mines | Entered Materials 56 | -9/Materials | Evolved 2 slots: Propulsion x1, Utility x1 57 | -9/Materials | Identified exit to Materials 60 | -9/Materials | Identified exit to Mines 129 | -9/Materials | Entered Mines 220 | -9/Mines | Assembled infested the area 224 | -9/Mines | Learned Materials emergency access door positions 225 | -9/Mines | Assisted by a Guerilla fighting off Assembled 300 | -9/Mines | Discovered exit to Materials (range 5) 301 | -9/Mines | Received a Mining Laser from a helpful Derelict 303 | -9/Mines | Build established: Mutant 313 | -9/Mines | Deemed a non-threat by the Exiles lab entrance 313 | -9/Mines | Discovered new exit (range 5) 315 | -9/Mines | Identified exit to Exiles 315 | -9/Mines | Entered Exiles 322 | -9/Exiles | Discovered new exit (range 15) 328 | -9/Exiles | Met 8R-AWN 336 | -9/Exiles | Met EX-HEX 350 | -9/Exiles | Met EX-BIN 356 | -9/Exiles | Aligned with FarCom system 356 | -9/Exiles | Given EX-Vault access code 368 | -9/Exiles | Opened EX-Vault 371 | -9/Exiles | Found Chronowheel 371 | -9/Exiles | Activated Chronowheel 371 | -9/Exiles | Spacetime reconverged on an earlier point 389 | -9/Exiles | Attacked by the Exiles 415 | -9/Exiles | Crushed by falling debris 415 | -9/Exiles | Core integrity fell below 50% 532 | -9/Exiles | Crushed by falling debris 533 | -9/Exiles | System corruption reached 10% 556 | -9/Exiles | Crushed by falling debris 557 | -9/Exiles | Core integrity fell below 20% 567 | -9/Exiles | Crushed by falling debris 570 | -9/Exiles | Crushed by falling debris 570 | -9/Exiles | Smashed by cave-in Last Messages --------------- 00461_ Critical hit (Burn: +80). 00469_ Destroyed Asb. F-torch. 00469_ Destroyed Asb. Hover Unit. 00469_ as-38992 system corrupted by crushing effect. 00470_ as-38992 system terminally corrupted. 00527_ The unstable cave ceiling collapses. 00532_ Crushed by falling debris. 00532_ Lgt. Treads destroyed. 00532_ System corrupted by crushing effect (+5). 00533_ The unstable cave ceiling collapses. 00536_ System corrupted: Component data lost. [Achievement: This Is My Hole] 00555_ System corrupted: Matter fused (-7). 00556_ The unstable cave ceiling collapses. 00556_ Crushed by falling debris. 00557_ The unstable cave ceiling collapses. 00567_ Crushed by falling debris. 00570_ The unstable cave ceiling collapses. 00570_ Crushed by falling debris. Map ----- +----------------------------------------------------+ | ?????????????????????????????????????????????????? | | ?????????????????????????????????????????????????? | | ?????????????????????????????????????????????????? | | ?????????????????????????????????????????????????? | | ?????????????????????????????????????????????????? | | ########?????????????????????????????????????????? | | ##????????????????????????????????????????? | | ##########???????????????????????????????????????? | | ??????## ##??????????????????????????????????????? | | ???????#####?????????????????????????????????????? | | ????????## ##????????????????????????????????????? | | ?????????## ##???????????????????????????????????? | | ??????????## ##??????????????????????????????????? | | ???????????## ##?????????????????????????????????? | | ????????????## ##????????????????????????????????? | | ?????????????## ##???????????????????????????????? | | ??????????????## ##??????????????????????????????? | | ???????????????## ##?????????????????????????????? | | ????????????????## ##????????????????????????????? | | ?????????????????## ##???????????????????????????? | | ??????????????????## ##??????????????????????????? | | ???????????????????## ##?????????????????????????? | | ????????????????????#####????????????????????????? | | ?????????????????????## ##???????????????????????? | | ??????????????????????## ##??????????????????????? | | ???????????????????????##@##?????????????????????? | | ????????????????????????## #?????????????????????? | | ?????????????????????????###?????????????????????? | | ?????????????????????????????????????????????????? | | ?????????????????????????????????????????????????? | | ?????????????????????????????????????????????????? | | ?????????????????????????????????????????????????? | | ?????????????????????????????????????????????????? | | ?????????????????????????????????????????????????? | | ?????????????????????????????????????????????????? | | ????????????????????????????????????????